[Event "Titled Tuesday Blitz July 6 2021"]
[White "Della Morte, German"]
[Black "Kamsky, Gata"]
[WhiteFideId "113522"]
[BlackFideId "2000024"]
[WhiteElo "2363"]
[BlackElo "2644"]
[Result "0-1"]
[Round "02"]
[TimeControl "180+1"]
[Date "2021.07.06"]
[WhiteClock "0:01:13"]
[BlackClock "0:01:39"]

1. e4 {[%clk 0:03:00]}  c5 {[%clk 0:02:59]} 2. Nf3 {[%clk 0:03:01]}  e6 {[%clk 0:02:55]} 3. d4 {[%clk 0:03:01]}  cxd4 {[%clk 0:02:55]} 4. Nxd4 {[%clk 0:03:02]}  a6 {[%clk 0:02:55]} 5. Bd3 {[%clk 0:03:02]}  Nf6 {[%clk 0:02:54]} 6. O-O {[%clk 0:03:01]}  d6 {[%clk 0:02:53]} 7. c4 {[%clk 0:03:00]}  b6 {[%clk 0:02:50]} 8. Nc3 {[%clk 0:02:55]}  Bb7 {[%clk 0:02:50]} 9. f4 {[%clk 0:02:51]}  Be7 {[%clk 0:02:42]} 10. Qe2 {[%clk 0:02:32]}  O-O {[%clk 0:02:39]} 11. g4 {[%clk 0:02:21]}  g6 {[%clk 0:02:35]} 12. g5 {[%clk 0:02:17]}  Nh5 {[%clk 0:02:34]} 13. f5 {[%clk 0:02:16]}  exf5 {[%clk 0:02:07]} 14. exf5 {[%clk 0:02:14]}  Bxg5 {[%clk 0:01:55]} 15. fxg6 {[%clk 0:02:14]}  Bxc1 {[%clk 0:01:51]} 16. gxh7+ {[%clk 0:02:01]}  Kh8 {[%clk 0:01:51]} 17. Qxh5 {[%clk 0:01:49]}  Be3+ {[%clk 0:01:48]} 18. Rf2 {[%clk 0:01:50]}  Bxd4 {[%clk 0:01:44]} 19. Qh6 {[%clk 0:01:41]}  Nd7 {[%clk 0:01:41]} 20. Kf1 {[%clk 0:01:12]}  Bxf2 {[%clk 0:01:39]} 21. Kxf2 {[%clk 0:01:13]}  Qf6+ {[%clk 0:01:39]} 22. Qxf6+ {[%clk 0:01:13]}  Nxf6 {[%clk 0:01:39]} 0-1


[Site "https://www.chess.com"]

[Event "Titled Tuesday Blitz July 6 2021"]
[White "Eternauta2400"]
[Black "Gunina, Valentina"]
[BlackFideId "4167570"]
[WhiteElo "2498"]
[BlackElo "2399"]
[Result "0-1"]
[Round "02"]
[TimeControl "180+1"]
[Date "2021.07.06"]
[WhiteClock "0:01:14"]
[BlackClock "0:01:00"]

1. d4 {[%clk 0:03:00]}  d5 {[%clk 0:02:59]} 2. c4 {[%clk 0:03:01]}  c6 {[%clk 0:03:00]} 3. cxd5 {[%clk 0:03:01]}  cxd5 {[%clk 0:03:00]} 4. Bf4 {[%clk 0:03:01]}  Nc6 {[%clk 0:02:59]} 5. e3 {[%clk 0:03:01]}  Nf6 {[%clk 0:02:59]} 6. Nc3 {[%clk 0:03:01]}  a6 {[%clk 0:02:59]} 7. Be2 {[%clk 0:03:02]}  Bf5 {[%clk 0:02:59]} 8. Nf3 {[%clk 0:03:01]}  e6 {[%clk 0:03:00]} 9. Qb3 {[%clk 0:03:02]}  Ra7 {[%clk 0:02:59]} 10. O-O {[%clk 0:03:01]}  Bd6 {[%clk 0:02:59]} 11. Bxd6 {[%clk 0:02:51]}  Qxd6 {[%clk 0:02:58]} 12. Rfc1 {[%clk 0:02:48]}  O-O {[%clk 0:02:58]} 13. Na4 {[%clk 0:02:47]}  Nd7 {[%clk 0:02:56]} 14. Nc5 {[%clk 0:02:46]}  b5 {[%clk 0:02:22]} 15. Nxd7 {[%clk 0:02:34]}  Qxd7 {[%clk 0:02:20]} 16. Rc5 {[%clk 0:02:34]}  Be4 {[%clk 0:02:07]} 17. Rac1 {[%clk 0:02:32]}  Bxf3 {[%clk 0:02:06]} 18. Bxf3 {[%clk 0:02:30]}  Na5 {[%clk 0:02:06]} 19. Qc3 {[%clk 0:02:27]}  Nc4 {[%clk 0:02:03]} 20. b3 {[%clk 0:02:27]}  Nd6 {[%clk 0:02:03]} 21. Rc6 {[%clk 0:02:19]}  Rd8 {[%clk 0:01:44]} 22. Qc5 {[%clk 0:02:17]}  Nf5 {[%clk 0:01:33]} 23. Rc8 {[%clk 0:02:08]}  Ra8 {[%clk 0:01:27]} 24. Rxa8 {[%clk 0:01:57]}  Rxa8 {[%clk 0:01:26]} 25. e4 {[%clk 0:01:52]}  dxe4 {[%clk 0:01:16]} 26. Bxe4 {[%clk 0:01:51]}  Rd8 {[%clk 0:01:10]} 27. Bxf5 {[%clk 0:01:51]}  exf5 {[%clk 0:01:10]} 28. d5 {[%clk 0:01:51]}  g6 {[%clk 0:01:10]} 29. Rd1 {[%clk 0:01:49]}  Rc8 {[%clk 0:01:10]} 30. Qd4 {[%clk 0:01:37]}  Qd6 {[%clk 0:01:10]} 31. g3 {[%clk 0:01:34]}  Re8 {[%clk 0:01:09]} 32. Rc1 {[%clk 0:01:28]}  Rd8 {[%clk 0:01:03]} 33. Rc5 {[%clk 0:01:25]}  h5 {[%clk 0:01:01]} 34. h4 {[%clk 0:01:23]}  f4 {[%clk 0:01:00]} 35. Qxf4 {[%clk 0:01:14]}  Qxc5 {[%clk 0:01:00]} 0-1


[Site "https://www.chess.com"]

[Event "Titled Tuesday Blitz July 6 2021"]
[White "Fiol, Fabrice"]
[Black "Vykouk, Jan"]
[WhiteFideId "611670"]
[BlackFideId "349658"]
[WhiteElo "2476"]
[BlackElo "2387"]
[Result "0-1"]
[Round "02"]
[TimeControl "180+1"]
[Date "2021.07.06"]
[WhiteClock "0:00:21"]
[BlackClock "0:00:47"]

1. e4 {[%clk 0:03:00]}  c5 {[%clk 0:02:59]} 2. Nf3 {[%clk 0:03:00]}  d6 {[%clk 0:03:00]} 3. d4 {[%clk 0:03:00]}  cxd4 {[%clk 0:03:01]} 4. Nxd4 {[%clk 0:03:00]}  Nf6 {[%clk 0:03:01]} 5. Nc3 {[%clk 0:03:01]}  a6 {[%clk 0:03:02]} 6. g3 {[%clk 0:03:00]}  e5 {[%clk 0:03:02]} 7. Nb3 {[%clk 0:03:00]}  b5 {[%clk 0:03:02]} 8. Bg2 {[%clk 0:02:59]}  b4 {[%clk 0:03:03]} 9. Nd5 {[%clk 0:02:58]}  Nxd5 {[%clk 0:03:04]} 10. exd5 {[%clk 0:02:59]}  a5 {[%clk 0:03:02]} 11. O-O {[%clk 0:02:44]}  Be7 {[%clk 0:03:01]} 12. Bd2 {[%clk 0:02:41]}  O-O {[%clk 0:03:01]} 13. c3 {[%clk 0:02:41]}  a4 {[%clk 0:02:56]} 14. Nc1 {[%clk 0:02:36]}  a3 {[%clk 0:02:57]} 15. bxa3 {[%clk 0:02:34]}  bxa3 {[%clk 0:02:57]} 16. Nb3 {[%clk 0:02:31]}  Nd7 {[%clk 0:02:54]} 17. c4 {[%clk 0:02:30]}  Ba6 {[%clk 0:02:53]} 18. Na5 {[%clk 0:02:26]}  Bg5 {[%clk 0:02:47]} 19. Nc6 {[%clk 0:02:20]}  Qf6 {[%clk 0:02:46]} 20. f4 {[%clk 0:02:04]}  exf4 {[%clk 0:02:44]} 21. Bxf4 {[%clk 0:02:02]}  Bxf4 {[%clk 0:02:44]} 22. Rxf4 {[%clk 0:02:03]}  Qg5 {[%clk 0:02:40]} 23. Qd4 {[%clk 0:01:48]}  Ne5 {[%clk 0:02:23]} 24. Raf1 {[%clk 0:01:39]}  Rae8 {[%clk 0:02:18]} 25. Rf5 {[%clk 0:01:28]}  Qg4 {[%clk 0:02:03]} 26. R1f4 {[%clk 0:00:46]}  Qe2 {[%clk 0:01:58]} 27. Re4 {[%clk 0:00:32]}  Qxa2 {[%clk 0:01:56]} 28. Nxe5 {[%clk 0:00:28]}  dxe5 {[%clk 0:01:56]} 29. Rfxe5 {[%clk 0:00:27]}  Rxe5 {[%clk 0:01:55]} 30. Qxe5 {[%clk 0:00:26]}  Qb1+ {[%clk 0:01:42]} 31. Re1 {[%clk 0:00:25]}  a2 {[%clk 0:01:41]} 32. d6 {[%clk 0:00:24]}  Bxc4 {[%clk 0:01:35]} 33. d7 {[%clk 0:00:24]}  Be6 {[%clk 0:01:34]} 34. Kf2 {[%clk 0:00:19]}  Bxd7 {[%clk 0:01:29]} 35. Be4 {[%clk 0:00:19]}  Qb6+ {[%clk 0:01:21]} 36. Kg2 {[%clk 0:00:18]}  Bc6 {[%clk 0:01:18]} 37. Bxc6 {[%clk 0:00:13]}  Qxc6+ {[%clk 0:01:18]} 38. Kh3 {[%clk 0:00:14]}  h6 {[%clk 0:01:14]} 39. g4 {[%clk 0:00:13]}  Ra8 {[%clk 0:01:11]} 40. Ra1 {[%clk 0:00:11]}  Qf6 {[%clk 0:01:07]} 41. Qxf6 {[%clk 0:00:11]}  gxf6 {[%clk 0:01:08]} 42. Kg3 {[%clk 0:00:11]}  Kg7 {[%clk 0:01:08]} 43. Kf4 {[%clk 0:00:12]}  Kg6 {[%clk 0:01:08]} 44. h4 {[%clk 0:00:12]}  h5 {[%clk 0:01:07]} 45. gxh5+ {[%clk 0:00:12]}  Kxh5 {[%clk 0:01:08]} 46. Kf5 {[%clk 0:00:13]}  Ra6 {[%clk 0:01:08]} 47. Kf4 {[%clk 0:00:11]}  Ra5 {[%clk 0:01:08]} 48. Kg3 {[%clk 0:00:06]}  f5 {[%clk 0:01:08]} 49. Kf4 {[%clk 0:00:05]}  f6 {[%clk 0:01:07]} 50. Kg3 {[%clk 0:00:05]}  Ra4 {[%clk 0:01:07]} 51. Kf3 {[%clk 0:00:04]}  Kxh4 {[%clk 0:01:05]} 52. Rh1+ {[%clk 0:00:04]}  Kg5 {[%clk 0:01:06]} 53. Rg1+ {[%clk 0:00:05]}  Kh5 {[%clk 0:01:04]} 54. Rh1+ {[%clk 0:00:06]}  Kg6 {[%clk 0:01:04]} 55. Rg1+ {[%clk 0:00:07]}  Kf7 {[%clk 0:01:05]} 56. Ra1 {[%clk 0:00:07]}  Ke6 {[%clk 0:01:05]} 57. Ke3 {[%clk 0:00:07]}  f4+ {[%clk 0:01:05]} 58. Kf3 {[%clk 0:00:08]}  Kd5 {[%clk 0:01:05]} 59. Rd1+ {[%clk 0:00:08]}  Kc4 {[%clk 0:01:05]} 60. Rc1+ {[%clk 0:00:09]}  Kb3 {[%clk 0:01:06]} 61. Ra1 {[%clk 0:00:10]}  Kb2 {[%clk 0:01:06]} 62. Re1 {[%clk 0:00:11]}  a1=Q {[%clk 0:01:07]} 63. Re2+ {[%clk 0:00:12]}  Kc3 {[%clk 0:01:07]} 64. Re4 {[%clk 0:00:12]}  Qf1+ {[%clk 0:01:06]} 65. Kg4 {[%clk 0:00:13]}  Qg2+ {[%clk 0:01:05]} 66. Kf5 {[%clk 0:00:14]}  Qxe4+ {[%clk 0:01:05]} 67. Kxf6 {[%clk 0:00:14]}  Ra6+ {[%clk 0:01:04]} 68. Kf7 {[%clk 0:00:15]}  Qb7+ {[%clk 0:01:03]} 69. Ke8 {[%clk 0:00:16]}  f3 {[%clk 0:01:02]} 70. Kd8 {[%clk 0:00:16]}  f2 {[%clk 0:01:02]} 71. Ke8 {[%clk 0:00:17]}  f1=Q {[%clk 0:01:00]} 72. Kd8 {[%clk 0:00:18]}  Kd4 {[%clk 0:00:58]} 73. Ke8 {[%clk 0:00:19]}  Ke5 {[%clk 0:00:57]} 74. Kd8 {[%clk 0:00:20]}  Ke6 {[%clk 0:00:56]} 75. Ke8 {[%clk 0:00:21]}  Qfb5+ {[%clk 0:00:51]} 76. Kd8 {[%clk 0:00:21]}  Q5d7# {[%clk 0:00:47]} 0-1


[Site "https://www.chess.com"]

[Event "Titled Tuesday Blitz July 6 2021"]
[White "Gontcharov, Vladislav"]
[Black "Plat, Vojtech"]
[WhiteFideId "4123492"]
[BlackFideId "325740"]
[WhiteElo "2503"]
[BlackElo "2486"]
[Result "1/2-1/2"]
[Round "02"]
[TimeControl "180+1"]
[Date "2021.07.06"]
[WhiteClock "0:00:02"]
[BlackClock "0:00:21"]

1. d4 {[%clk 0:03:00]}  d6 {[%clk 0:02:59]} 2. e4 {[%clk 0:03:00]}  Nf6 {[%clk 0:02:59]} 3. Nc3 {[%clk 0:02:58]}  e5 {[%clk 0:02:59]} 4. dxe5 {[%clk 0:02:58]}  dxe5 {[%clk 0:02:59]} 5. Qxd8+ {[%clk 0:02:59]}  Kxd8 {[%clk 0:02:59]} 6. Bc4 {[%clk 0:02:59]}  Be6 {[%clk 0:02:59]} 7. Bxe6 {[%clk 0:02:59]}  fxe6 {[%clk 0:03:00]} 8. f3 {[%clk 0:02:54]}  Bc5 {[%clk 0:03:00]} 9. Nh3 {[%clk 0:02:51]}  Nbd7 {[%clk 0:02:59]} 10. Nf2 {[%clk 0:02:51]}  a6 {[%clk 0:02:57]} 11. Nd3 {[%clk 0:02:51]}  Bd6 {[%clk 0:02:55]} 12. b3 {[%clk 0:02:45]}  Ke7 {[%clk 0:02:54]} 13. Bb2 {[%clk 0:02:45]}  b5 {[%clk 0:02:55]} 14. a4 {[%clk 0:02:41]}  c6 {[%clk 0:02:53]} 15. Ke2 {[%clk 0:02:39]}  Rhb8 {[%clk 0:02:52]} 16. Ra2 {[%clk 0:02:32]}  Nc5 {[%clk 0:02:51]} 17. Nxc5 {[%clk 0:02:29]}  Bxc5 {[%clk 0:02:51]} 18. axb5 {[%clk 0:02:18]}  axb5 {[%clk 0:02:48]} 19. Rha1 {[%clk 0:02:18]}  Rxa2 {[%clk 0:02:47]} 20. Nxa2 {[%clk 0:02:10]}  Nd7 {[%clk 0:02:44]} 21. Nc1 {[%clk 0:02:07]}  Bd4 {[%clk 0:02:40]} 22. Nd3 {[%clk 0:01:55]}  Kd6 {[%clk 0:02:34]} 23. Bxd4 {[%clk 0:01:52]}  exd4 {[%clk 0:02:34]} 24. Ra7 {[%clk 0:01:51]}  e5 {[%clk 0:02:28]} 25. h4 {[%clk 0:01:39]}  h6 {[%clk 0:02:26]} 26. h5 {[%clk 0:01:38]}  Rf8 {[%clk 0:02:22]} 27. g3 {[%clk 0:01:35]}  Re8 {[%clk 0:02:21]} 28. b4 {[%clk 0:01:29]}  Nf6 {[%clk 0:02:02]} 29. Rxg7 {[%clk 0:01:09]}  Nxh5 {[%clk 0:02:00]} 30. Rg6+ {[%clk 0:01:09]}  Re6 {[%clk 0:01:59]} 31. Rg8 {[%clk 0:01:08]}  Nf6 {[%clk 0:01:52]} 32. Rh8 {[%clk 0:00:59]}  Nd7 {[%clk 0:01:27]} 33. Rd8 {[%clk 0:00:44]}  Kc7 {[%clk 0:01:26]} 34. Rh8 {[%clk 0:00:28]}  Rf6 {[%clk 0:01:23]} 35. f4 {[%clk 0:00:27]}  exf4 {[%clk 0:01:19]} 36. gxf4 {[%clk 0:00:27]}  Rg6 {[%clk 0:01:19]} 37. f5 {[%clk 0:00:23]}  Rg2+ {[%clk 0:01:18]} 38. Kf3 {[%clk 0:00:20]}  Rxc2 {[%clk 0:01:17]} 39. Rh7 {[%clk 0:00:19]}  Kd8 {[%clk 0:01:09]} 40. e5 {[%clk 0:00:18]}  Rd2 {[%clk 0:01:06]} 41. Ke4 {[%clk 0:00:18]}  Rh2 {[%clk 0:00:50]} 42. Kxd4 {[%clk 0:00:16]}  Rh4+ {[%clk 0:00:48]} 43. Ke3 {[%clk 0:00:14]}  Rh3+ {[%clk 0:00:48]} 44. Ke2 {[%clk 0:00:13]}  Rh5 {[%clk 0:00:42]} 45. f6 {[%clk 0:00:08]}  Nxe5 {[%clk 0:00:41]} 46. Nxe5 {[%clk 0:00:07]}  Rxe5+ {[%clk 0:00:40]} 47. Kd3 {[%clk 0:00:05]}  Rf5 {[%clk 0:00:38]} 48. Rxh6 {[%clk 0:00:04]}  Kd7 {[%clk 0:00:37]} 49. Kd4 {[%clk 0:00:04]}  Kd6 {[%clk 0:00:29]} 50. f7+ {[%clk 0:00:03]}  Kd7 {[%clk 0:00:29]} 51. Rh7 {[%clk 0:00:03]}  Ke7 {[%clk 0:00:28]} 52. Rh6 {[%clk 0:00:02]}  Rf4+ {[%clk 0:00:23]} 53. Kd3 {[%clk 0:00:02]}  Rc4 {[%clk 0:00:20]} 54. Rf6 {[%clk 0:00:02]}  Kf8 {[%clk 0:00:20]} 55. Kd2 {[%clk 0:00:03]}  Rxb4 {[%clk 0:00:20]} 56. Rxc6 {[%clk 0:00:02]}  Kxf7 {[%clk 0:00:20]} 57. Kc3 {[%clk 0:00:03]}  Rc4+ {[%clk 0:00:20]} 58. Rxc4 {[%clk 0:00:02]}  bxc4 {[%clk 0:00:21]} 59. Kxc4 {[%clk 0:00:02]} 1/2-1/2


[Site "https://www.chess.com"]

[Event "Titled Tuesday Blitz July 6 2021"]
[White "Gracia Alvarez, Gerardo Antonio"]
[Black "Pohjala, Henri"]
[WhiteFideId "5109124"]
[BlackFideId "506478"]
[WhiteElo "2148"]
[BlackElo "2365"]
[Result "0-1"]
[Round "02"]
[TimeControl "180+1"]
[Date "2021.07.06"]
[WhiteClock "0:00:01"]
[BlackClock "0:00:06"]

1. e4 {[%clk 0:03:00]}  d5 {[%clk 0:02:59]} 2. exd5 {[%clk 0:03:00]}  Qxd5 {[%clk 0:02:59]} 3. Nc3 {[%clk 0:03:00]}  Qd6 {[%clk 0:03:00]} 4. d4 {[%clk 0:02:56]}  Nf6 {[%clk 0:03:00]} 5. Nb5 {[%clk 0:02:51]}  Qb6 {[%clk 0:02:59]} 6. c4 {[%clk 0:02:50]}  c6 {[%clk 0:02:59]} 7. Nc3 {[%clk 0:02:50]}  Bg4 {[%clk 0:02:54]} 8. Nf3 {[%clk 0:02:31]}  Bxf3 {[%clk 0:02:52]} 9. Qxf3 {[%clk 0:02:30]}  Qxd4 {[%clk 0:02:51]} 10. Be3 {[%clk 0:02:30]}  Qe5 {[%clk 0:02:51]} 11. O-O-O {[%clk 0:02:30]}  Nbd7 {[%clk 0:02:47]} 12. Kb1 {[%clk 0:02:23]}  e6 {[%clk 0:02:43]} 13. Bf4 {[%clk 0:02:21]}  Qh5 {[%clk 0:02:33]} 14. Qg3 {[%clk 0:02:09]}  Qg6+ {[%clk 0:02:32]} 15. Bd3 {[%clk 0:02:08]}  Qxg3 {[%clk 0:02:30]} 16. hxg3 {[%clk 0:02:09]}  h6 {[%clk 0:02:20]} 17. f3 {[%clk 0:02:09]}  Be7 {[%clk 0:02:14]} 18. g4 {[%clk 0:02:09]}  Rg8 {[%clk 0:02:13]} 19. g5 {[%clk 0:02:04]}  hxg5 {[%clk 0:02:14]} 20. Bxg5 {[%clk 0:02:05]}  O-O-O {[%clk 0:02:08]} 21. Bc2 {[%clk 0:02:01]}  Ne5 {[%clk 0:01:58]} 22. b3 {[%clk 0:02:00]}  Rxd1+ {[%clk 0:01:57]} 23. Bxd1 {[%clk 0:01:56]}  Ned7 {[%clk 0:01:52]} 24. Bc2 {[%clk 0:01:55]}  Bd6 {[%clk 0:01:45]} 25. Ne4 {[%clk 0:01:49]}  Nxe4 {[%clk 0:01:44]} 26. Bxe4 {[%clk 0:01:50]}  f6 {[%clk 0:01:26]} 27. Be3 {[%clk 0:01:49]}  a6 {[%clk 0:01:17]} 28. Bg6 {[%clk 0:01:47]}  Ne5 {[%clk 0:01:13]} 29. Bc2 {[%clk 0:01:45]}  Kd7 {[%clk 0:01:04]} 30. Rh7 {[%clk 0:01:41]}  Ke7 {[%clk 0:01:03]} 31. Bd4 {[%clk 0:01:27]}  Kf7 {[%clk 0:01:00]} 32. Rh1 {[%clk 0:01:18]}  Bc7 {[%clk 0:00:57]} 33. Bxe5 {[%clk 0:01:14]}  Bxe5 {[%clk 0:00:57]} 34. Rd1 {[%clk 0:01:15]}  Ke7 {[%clk 0:00:56]} 35. Rh1 {[%clk 0:01:10]}  Rd8 {[%clk 0:00:51]} 36. g4 {[%clk 0:01:02]}  Rd2 {[%clk 0:00:48]} 37. Rf1 {[%clk 0:00:57]}  Bf4 {[%clk 0:00:45]} 38. Be4 {[%clk 0:00:54]}  Rh2 {[%clk 0:00:41]} 39. Bc2 {[%clk 0:00:32]}  Be5 {[%clk 0:00:36]} 40. Kc1 {[%clk 0:00:32]}  Bd4 {[%clk 0:00:34]} 41. Kd1 {[%clk 0:00:32]}  b5 {[%clk 0:00:31]} 42. Re1 {[%clk 0:00:27]}  Kd6 {[%clk 0:00:29]} 43. Re2 {[%clk 0:00:27]}  Rh1+ {[%clk 0:00:27]} 44. Kd2 {[%clk 0:00:27]}  Ra1 {[%clk 0:00:23]} 45. Kd3 {[%clk 0:00:25]}  c5 {[%clk 0:00:19]} 46. cxb5 {[%clk 0:00:26]}  axb5 {[%clk 0:00:20]} 47. a4 {[%clk 0:00:26]}  bxa4 {[%clk 0:00:18]} 48. bxa4 {[%clk 0:00:26]}  Ra3+ {[%clk 0:00:16]} 49. Kc4 {[%clk 0:00:23]}  Rxf3 {[%clk 0:00:15]} 50. a5 {[%clk 0:00:17]}  Ra3 {[%clk 0:00:14]} 51. Kb5 {[%clk 0:00:17]}  e5 {[%clk 0:00:14]} 52. Be4 {[%clk 0:00:13]}  c4 {[%clk 0:00:13]} 53. Kxc4 {[%clk 0:00:09]}  Rxa5 {[%clk 0:00:13]} 54. Rg2 {[%clk 0:00:08]}  Rc5+ {[%clk 0:00:12]} 55. Kd3 {[%clk 0:00:08]}  Rc3+ {[%clk 0:00:13]} 56. Kd2 {[%clk 0:00:09]}  Re3 {[%clk 0:00:11]} 57. Bf5 {[%clk 0:00:08]}  Ra3 {[%clk 0:00:10]} 58. Be4 {[%clk 0:00:07]}  Ra2+ {[%clk 0:00:09]} 59. Kd3 {[%clk 0:00:07]}  Ra3+ {[%clk 0:00:07]} 60. Kd2 {[%clk 0:00:08]}  Be3+ {[%clk 0:00:05]} 61. Ke2 {[%clk 0:00:07]}  Bf4 {[%clk 0:00:05]} 62. Bd3 {[%clk 0:00:03]}  e4 {[%clk 0:00:05]} 63. Bc2 {[%clk 0:00:02]}  Ke5 {[%clk 0:00:05]} 64. Rg1 {[%clk 0:00:01]}  Re3+ {[%clk 0:00:06]} 65. Kd1 {[%clk 0:00:01]}  Rc3 {[%clk 0:00:06]} 0-1


[Site "https://www.chess.com"]

[Event "Titled Tuesday Blitz July 6 2021"]
[White "Howell, David W L"]
[Black "Perez Rodriguez, Luis Manuel"]
[WhiteFideId "410608"]
[BlackFideId "3503364"]
[WhiteElo "2643"]
[BlackElo "2429"]
[Result "1-0"]
[Round "02"]
[TimeControl "180+1"]
[Date "2021.07.06"]
[WhiteClock "0:00:59"]
[BlackClock "0:00:38"]

1. e4 {[%clk 0:02:58]}  e5 {[%clk 0:02:59]} 2. Nc3 {[%clk 0:02:52]}  Nc6 {[%clk 0:02:58]} 3. f4 {[%clk 0:02:50]}  exf4 {[%clk 0:02:57]} 4. d4 {[%clk 0:02:49]}  Qh4+ {[%clk 0:02:34]} 5. Ke2 {[%clk 0:02:47]}  d5 {[%clk 0:02:11]} 6. Nf3 {[%clk 0:02:47]}  Bg4 {[%clk 0:02:09]} 7. exd5 {[%clk 0:02:37]}  Nce7 {[%clk 0:02:03]} 8. Bxf4 {[%clk 0:02:30]}  O-O-O {[%clk 0:02:03]} 9. Kd2 {[%clk 0:02:21]}  Qh5 {[%clk 0:01:57]} 10. h3 {[%clk 0:02:05]}  Nf6 {[%clk 0:01:44]} 11. Be2 {[%clk 0:01:56]}  Qf5 {[%clk 0:01:41]} 12. Be3 {[%clk 0:01:49]}  Bxf3 {[%clk 0:01:33]} 13. Bxf3 {[%clk 0:01:50]}  h5 {[%clk 0:01:26]} 14. Rf1 {[%clk 0:01:47]}  Qd7 {[%clk 0:01:26]} 15. Bg5 {[%clk 0:01:30]}  Re8 {[%clk 0:01:22]} 16. Bxf6 {[%clk 0:01:28]}  gxf6 {[%clk 0:01:23]} 17. Kc1 {[%clk 0:01:28]}  Bh6+ {[%clk 0:01:22]} 18. Kb1 {[%clk 0:01:27]}  Nf5 {[%clk 0:01:20]} 19. Qd3 {[%clk 0:01:19]}  Re3 {[%clk 0:01:16]} 20. Qc4 {[%clk 0:01:19]}  Rhe8 {[%clk 0:00:57]} 21. a4 {[%clk 0:01:18]}  Nd6 {[%clk 0:00:43]} 22. Qc5 {[%clk 0:01:17]}  Kb8 {[%clk 0:00:41]} 23. Nb5 {[%clk 0:01:13]}  Nc8 {[%clk 0:00:40]} 24. Ka2 {[%clk 0:01:04]}  h4 {[%clk 0:00:38]} 25. Bg4 {[%clk 0:01:01]}  Qe7 {[%clk 0:00:38]} 26. Bxc8 {[%clk 0:00:58]}  Qxc5 {[%clk 0:00:38]} 27. dxc5 {[%clk 0:00:59]} 1-0


[Site "https://www.chess.com"]

[Event "Titled Tuesday Blitz July 6 2021"]
[White "Ibrahimli, Murad"]
[Black "Manukyan, Artyom"]
[WhiteFideId "13410229"]
[BlackFideId "13305786"]
[WhiteElo "2109"]
[BlackElo "2034"]
[Result "1-0"]
[Round "02"]
[TimeControl "180+1"]
[Date "2021.07.06"]
[WhiteClock "0:01:30"]
[BlackClock "0:00:13"]

1. Nf3 {[%clk 0:03:00]}  d5 {[%clk 0:02:59]} 2. g3 {[%clk 0:02:59]}  Nf6 {[%clk 0:02:59]} 3. Bg2 {[%clk 0:03:00]}  e6 {[%clk 0:03:00]} 4. O-O {[%clk 0:03:00]}  Be7 {[%clk 0:03:01]} 5. c4 {[%clk 0:03:01]}  O-O {[%clk 0:03:02]} 6. d4 {[%clk 0:03:00]}  dxc4 {[%clk 0:03:02]} 7. Qc2 {[%clk 0:03:01]}  a6 {[%clk 0:03:03]} 8. a4 {[%clk 0:03:01]}  Bd7 {[%clk 0:03:03]} 9. Qxc4 {[%clk 0:03:00]}  Bc6 {[%clk 0:03:03]} 10. Bg5 {[%clk 0:03:00]}  Nbd7 {[%clk 0:03:03]} 11. Nc3 {[%clk 0:02:58]}  h6 {[%clk 0:03:03]} 12. Bxf6 {[%clk 0:02:55]}  Nxf6 {[%clk 0:03:04]} 13. Rfe1 {[%clk 0:02:53]}  Bd5 {[%clk 0:02:48]} 14. Qd3 {[%clk 0:02:53]}  Bxf3 {[%clk 0:02:45]} 15. Bxf3 {[%clk 0:02:54]}  c6 {[%clk 0:02:46]} 16. e3 {[%clk 0:02:46]}  a5 {[%clk 0:02:45]} 17. Kg2 {[%clk 0:02:46]}  Qd6 {[%clk 0:02:43]} 18. Qc2 {[%clk 0:02:43]}  Rfd8 {[%clk 0:02:43]} 19. Rad1 {[%clk 0:02:42]}  Rac8 {[%clk 0:02:41]} 20. h4 {[%clk 0:02:41]}  Qb4 {[%clk 0:02:42]} 21. Rd3 {[%clk 0:02:33]}  c5 {[%clk 0:02:29]} 22. d5 {[%clk 0:02:30]}  exd5 {[%clk 0:02:25]} 23. Bxd5 {[%clk 0:02:27]}  Nxd5 {[%clk 0:01:38]} 24. Rxd5 {[%clk 0:02:26]}  Bf6 {[%clk 0:01:33]} 25. Red1 {[%clk 0:02:26]}  Qc4 {[%clk 0:01:29]} 26. b3 {[%clk 0:02:18]}  Qg4 {[%clk 0:01:22]} 27. Ne4 {[%clk 0:02:16]}  Be7 {[%clk 0:01:05]} 28. Rxd8+ {[%clk 0:02:16]}  Bxd8 {[%clk 0:01:06]} 29. Nd6 {[%clk 0:02:12]}  Rb8 {[%clk 0:00:57]} 30. Nxb7 {[%clk 0:01:59]}  Be7 {[%clk 0:00:51]} 31. Nxa5 {[%clk 0:01:56]}  Qb4 {[%clk 0:00:49]} 32. Nc6 {[%clk 0:01:54]}  Qb7 {[%clk 0:00:45]} 33. Qe4 {[%clk 0:01:54]}  Bf6 {[%clk 0:00:45]} 34. Qf3 {[%clk 0:01:45]}  Rc8 {[%clk 0:00:31]} 35. Na5 {[%clk 0:01:39]}  Qb6 {[%clk 0:00:28]} 36. Qb7 {[%clk 0:01:38]}  Rb8 {[%clk 0:00:18]} 37. Qxb6 {[%clk 0:01:38]}  Rxb6 {[%clk 0:00:19]} 38. Rd5 {[%clk 0:01:36]}  Be7 {[%clk 0:00:16]} 39. Rd7 {[%clk 0:01:34]}  Bf6 {[%clk 0:00:16]} 40. Rb7 {[%clk 0:01:34]}  Ra6 {[%clk 0:00:16]} 41. Nc4 {[%clk 0:01:34]}  Bc3 {[%clk 0:00:15]} 42. Rb5 {[%clk 0:01:34]}  Bb4 {[%clk 0:00:15]} 43. h5 {[%clk 0:01:34]}  Kh7 {[%clk 0:00:15]} 44. g4 {[%clk 0:01:33]}  Re6 {[%clk 0:00:14]} 45. f4 {[%clk 0:01:33]}  Rc6 {[%clk 0:00:13]} 46. Kf3 {[%clk 0:01:33]}  Re6 {[%clk 0:00:13]} 47. e4 {[%clk 0:01:33]}  Rc6 {[%clk 0:00:13]} 48. e5 {[%clk 0:01:33]}  Rc7 {[%clk 0:00:13]} 49. Rb6 {[%clk 0:01:33]}  Rd7 {[%clk 0:00:13]} 50. Rd6 {[%clk 0:01:33]}  Rc7 {[%clk 0:00:14]} 51. Ke4 {[%clk 0:01:33]}  Rb7 {[%clk 0:00:14]} 52. Rb6 {[%clk 0:01:32]}  Rd7 {[%clk 0:00:13]} 53. Nd6 {[%clk 0:01:33]}  Rc7 {[%clk 0:00:13]} 54. Kd5 {[%clk 0:01:32]}  Ba3 {[%clk 0:00:13]} 55. Nc4 {[%clk 0:01:30]}  Bb4 {[%clk 0:00:13]} 56. f5 {[%clk 0:01:30]}  Rc8 {[%clk 0:00:13]} 57. e6 {[%clk 0:01:30]}  Rd8+ {[%clk 0:00:13]} 58. Rd6 {[%clk 0:01:30]}  Rxd6+ {[%clk 0:00:12]} 59. Nxd6 {[%clk 0:01:29]}  fxe6+ {[%clk 0:00:13]} 60. fxe6 {[%clk 0:01:30]} 1-0


[Site "https://www.chess.com"]